bitfinex/quotes_ETHUSD_20250722
["timestamp","ask_amount","ask_price","bid_price","bid_amount"]
[1753182081871,3.20599377,3695.5,3695.4,1.46953822]
[1753182082052,3.20599377,3695.5,3695.4,0.66453822]
[1753182083285,0.5,3695.5,3695.4,0.66453822]
[1753182084501,0.5,3695.5,3695.4,0.4599]
[1753182084786,0.5,3695.5,3695.4,4.133167]
[1753182085387,0.5,3695.5,3695.4,4.38288375]
[1753182086193,0.5,3695.5,3695.4,1.67681675]
[1753182086400,0.5,3695.5,3695.4,4.38288375]
[1753182090972,0.5,3695.5,3695.4,0.84481675]
[1753182091376,0.5,3695.5,3695.4,0.24971675]
[1753182091687,3.20599377,3695.5,3695.4,0.24971675]
[1753182091873,0.5,3695.5,3695.4,0.24971675]
[1753182092998,3.20599377,3695.5,3695.4,0.24971675]
[1753182093298,3.81069211,3695.5,3695.4,0.24971675]
[1753182094508,3.84451703,3695.5,3695.4,0.24971675]
[1753182095196,0.5,3695.5,3695.4,0.71281675]
[1753182095817,0.5,3695.5,3695.4,4.19698375]
[1753182096025,0.5,3695.5,3695.4,1.62611675]
[1753182096235,0.5,3695.5,3695.4,0.38491675]
[1753182096520,0.5,3695.5,3695.4,0.84820416]
[1753182096928,3.20599377,3695.5,3695.4,0.71301332]
[1753182097126,3.20599377,3695.5,3695.4,0.24991332]
[1753182097420,3.67869546,3695.5,3695.4,0.24991332]
[1753182098243,4.98859546,3695.5,3695.4,0.24991332]
[1753182098719,2.70631797,3695.1,3694.8,0.5]
[1753182098888,2.706241,3695.2,3694.9,0.24994313]
[1753182099089,2.7062867,3695.1,3695.0,0.71304313]
[1753182099515,2.7062867,3695.1,3695.0,0.24987354]
[1753182100234,7.63313297,3695.1,3695.0,0.24987354]
[1753182102084,7.63663297,3695.1,3695.0,0.24987354]
[1753182102837,7.63663297,3695.1,3695.0,1e-08]
[1753182102985,7.63663297,3695.1,3694.6,0.001]
[1753182102986,4.05227969,3694.7,3694.6,0.001]
[1753182103329,4.08611193,3694.7,3694.6,0.001]
[1753182103493,4.54946651,3694.7,3694.6,0.001]
[1753182104406,4.55296651,3694.7,3694.6,0.001]
[1753182105318,7.54946651,3694.7,3694.6,0.001]
[1753182105643,7.51563427,3694.7,3694.6,0.001]
[1753182106138,2.70657969,3694.7,3694.6,0.4343]
[1753182107046,2.70657969,3694.7,3694.6,0.001]
[1753182111253,2.74041193,3694.7,3694.6,0.001]
[1753182112144,2.74041193,3694.7,3694.5,0.001]
[1753182112145,3.39185295,3694.6,3694.5,0.001]
[1753182112366,6.39185295,3694.6,3694.5,0.001]
[1753182112551,6.25672621,3694.5,3694.4,1e-08]
[1753182114034,6.25672621,3694.5,3692.4,0.001]
[1753182114035,2.70819228,3692.5,3692.4,0.001]
[1753182114229,0.27081923,3692.5,3692.4,0.001]
[1753182114430,2.84339228,3692.5,3692.4,0.4343]
[1753182114779,2.70819228,3692.5,3692.4,0.4343]
[1753182114915,2.70819228,3692.5,3692.4,0.68394132]
[1753182115960,2.7081796,3692.6,3692.4,0.68394132]
[1753182116210,0.1352,3692.9,3692.4,0.68394132]
[1753182116211,2.70819228,3692.5,3692.4,0.001]
[1753182116485,2.70819228,3692.5,3692.4,0.25046838]
[1753182116844,2.70819228,3692.5,3692.4,0.4343]
[1753182117050,2.70819228,3692.5,3692.4,0.68377982]
[1753182117884,2.70812494,3692.6,3692.4,0.68377982]
[1753182118191,2.70812494,3692.6,3692.5,0.68277982]
[1753182119670,2.70812494,3692.6,3692.5,0.24947982]
[1753182120304,2.70819228,3692.5,3692.4,0.001]
[1753182121013,2.70813604,3692.6,3692.4,0.4343]
[1753182121312,2.84326547,3692.7,3692.5,0.001]
[1753182121612,2.70819228,3692.5,3692.3,1e-08]
[1753182121817,2.74211894,3692.4,3692.3,1e-08]
[1753182122111,3.29211894,3692.4,3692.3,1e-08]
[1753182122815,2.74211894,3692.4,3692.3,1e-08]
[1753182122970,3.39445272,3692.4,3692.3,1e-08]
[1753182123296,3.94445272,3692.4,3692.3,1e-08]
[1753182124328,4.03690578,3691.8,3691.7,1e-08]
[1753182124529,4.0707646,3691.8,3691.7,1e-08]
[1753182124838,4.40607285,3691.8,3691.7,1e-08]
[1753182126619,4.43993167,3691.8,3691.7,1e-08]
[1753182126926,4.40607285,3691.8,3691.7,1e-08]
[1753182128145,4.03690578,3691.8,3691.7,1e-08]
[1753182129561,4.03690578,3691.8,3691.5,1e-08]
[1753182129562,2.70885253,3691.6,3691.5,1e-08]
[1753182129766,3.25885253,3691.6,3691.5,1e-08]
[1753182129926,2.70885253,3691.6,3691.5,1e-08]
[1753182130461,0.55,3690.8,3690.2,0.001]
[1753182130665,2.70929961,3691.0,3690.3,0.7818]
[1753182130834,2.70919615,3691.2,3690.5,0.766]
[1753182131030,2.70919615,3691.2,3690.6,0.4333]
[1753182131364,2.70919615,3691.2,3690.7,0.39360489]
[1753182131550,2.70899937,3691.4,3690.7,0.39360489]
[1753182131551,2.70900238,3691.4,3690.9,0.766]
[1753182131748,2.70905644,3691.4,3691.0,0.1352]
[1753182132064,2.70915546,3691.2,3691.0,0.5685]
[1753182132224,2.70921947,3691.1,3691.0,0.1352]
[1753182132569,2.7095131,3690.7,3690.6,0.9303]
[1753182132723,2.7095131,3690.7,3690.6,0.7951]
[1753182132926,2.70973336,3690.4,3690.2,0.4343]
[1753182133123,2.74367937,3690.3,3690.2,0.001]
[1753182133435,2.70980679,3690.3,3690.2,0.001]
[1753182135852,0.44326116,3690.9,3690.2,0.68381313]
[1753182136049,0.38104792,3691.4,3690.3,0.71521313]
[1753182136259,0.1352,3690.8,3690.4,1.52961313]
[1753182136469,0.1352,3690.8,3690.5,0.71521313]
[1753182136777,0.1352,3690.8,3690.6,0.24951313]
[1753182136940,2.70931365,3691.0,3690.7,0.24951313]
[1753182136941,2.70934961,3691.0,3690.7,0.24951313]
[1753182137133,2.70934961,3691.0,3690.8,0.71521313]
[1753182137334,2.70934961,3691.0,3690.9,0.71521313]
[1753182137933,2.70934961,3691.0,3690.9,0.24951313]
[1753182138141,3.26472203,3691.0,3690.9,0.24951313]
[1753182138744,2.70965993,3690.5,3690.4,0.8144]
[1753182138951,0.1352,3690.7,3690.4,0.71543515]
[1753182139291,0.1352,3690.7,3690.5,0.71543515]
[1753182139499,0.1352,3690.7,3690.6,0.24973515]
[1753182139783,0.1352,3691.0,3690.6,0.71543515]
[1753182139983,2.84449362,3691.0,3690.7,0.71543515]
[1753182140183,0.1352,3691.0,3690.8,0.24973515]
[1753182140383,2.84453974,3691.0,3690.9,0.71543515]
[1753182141054,2.84453974,3691.0,3690.9,0.24973515]
[1753182142310,2.84453974,3691.0,3690.9,0.71543515]
[1753182142607,2.84449287,3691.0,3690.9,0.71543515]
[1753182142909,0.1352,3691.0,3690.9,0.71543515]
[1753182143905,0.1352,3691.0,3690.9,3.57889494]
[1753182143906,0.5,3691.0,3690.9,3.57889494]
[1753182144109,0.5,3691.0,3690.9,0.86952867]
[1753182144406,0.5,3691.0,3690.9,3.57889494]
[1753182144607,14.5,3691.3,3691.2,2.70914607]
[1753182144808,2.70847848,3692.2,3691.2,2.70914607]
[1753182144809,0.1352,3691.8,3691.2,4.23618122]
[1753182145113,0.1352,3692.0,3691.5,2.70887995]
[1753182145274,14.6352,3692.0,3691.6,0.71543515]
[1753182145603,14.6352,3692.0,3691.7,0.71543515]
[1753182145767,14.6352,3692.0,3691.8,0.24973515]
[1753182145965,2.70850371,3692.1,3691.9,0.24973515]
[1753182146207,2.70850371,3692.1,3692.0,0.71543515]
[1753182146910,17.20850371,3692.1,3692.0,0.71543515]
[1753182147105,14.5,3692.1,3692.0,0.71543515]
[1753182148209,17.20848568,3692.1,3692.0,0.71543515]
[1753182149415,14.5,3692.1,3692.0,0.71543515]
[1753182149573,17.20848568,3692.1,3692.0,0.24973515]
[1753182150678,2.70870221,3691.9,3691.7,0.4657]
[1753182150878,2.70870221,3691.9,3691.8,0.71604829]
[1753182151106,0.1352,3692.2,3691.8,0.71604829]
[1753182151107,0.1352,3692.2,3692.1,2.70848568]
[1753182151413,0.002,3693.4,3692.8,2.70791841]
[1753182151616,0.002,3693.4,3693.1,2.70775229]
[1753182151786,0.002,3693.4,3693.0,0.7873]
[1753182151787,0.002,3693.4,3693.2,0.25034829]
[1753182151975,0.002,3693.4,3693.0,0.7873]
[1753182151976,0.002,3693.4,3693.3,0.25034829]
[1753182152481,0.002,3693.4,3693.3,3.42365395]
[1753182152886,0.002,3693.4,3693.3,0.25034829]
[1753182153100,2.70953235,3693.4,3693.3,0.25034829]
[1753182154147,3.49983235,3693.4,3693.3,0.25034829]
[1753182154295,4.04983235,3693.4,3693.3,0.25034829]
[1753182154500,7.04983235,3693.4,3693.3,0.25034829]
[1753182155620,21.55533235,3693.4,3693.3,0.25034829]
[1753182156001,21.54983235,3693.4,3693.3,0.25034829]
[1753182157037,51.55533235,3693.4,3693.3,0.25034829]
[1753182157200,51.55533235,3693.4,3693.3,1e-08]
[1753182159412,2.70847483,3692.2,3691.9,0.4657]
[1753182159622,2.70855904,3692.0,3691.9,0.4657]
[1753182159814,2.70864853,3691.9,3691.4,1.2489]
[1753182160028,0.03385882,3691.8,3691.5,0.4657]
[1753182160359,2.70885253,3691.6,3691.4,0.7832]
[1753182160758,2.70880392,3691.7,3691.4,0.7832]
[1753182160934,2.70880392,3691.7,3691.5,0.4657]
[1753182161269,0.03386065,3691.6,3691.0,0.4657]
[1753182161459,2.70899929,3691.4,3691.0,0.4657]
[1753182161622,17.20899929,3691.4,3691.1,0.4657]
[1753182161822,17.20899929,3691.4,3691.2,0.4657]
[1753182162051,2.70907268,3691.3,3690.8,0.1352]
[1753182162369,14.5,3691.4,3690.8,0.1352]
[1753182162370,2.70919246,3691.2,3690.8,0.1352]
[1753182162733,2.70919246,3691.2,3690.9,0.4657]
[1753182163046,2.70919246,3691.2,3691.0,0.4657]
[1753182163255,2.70919246,3691.2,3690.8,0.1352]
[1753182163423,2.70919246,3691.2,3690.7,0.7915]
[1753182163424,2.70935705,3691.0,3690.7,0.7915]
[1753182163623,2.70935705,3691.0,3690.9,0.4657]
[1753182163934,17.20935705,3691.0,3690.9,0.4657]
[1753182166959,2.70935705,3691.0,3690.9,0.4657]
[1753182167538,2.70943968,3690.8,3690.7,0.7915]
[1753182167738,2.70943968,3690.8,3690.7,0.4452]
[1753182167943,2.70939015,3690.9,3690.7,0.4452]
[1753182168164,2.70957131,3690.7,3690.5,0.001]
[1753182168464,14.5,3691.0,3690.5,0.001]
[1753182168465,2.70958651,3690.6,3690.5,0.4462]
[1753182169551,14.5,3691.0,3690.5,0.4462]
[1753182169757,14.5,3691.0,3690.6,0.8165]
[1753182169758,17.20929484,3691.0,3690.6,0.8165]
[1753182169973,2.70929484,3691.0,3690.6,0.8165]
[1753182170136,2.70929484,3691.0,3690.7,0.4452]
[1753182171177,2.70938513,3690.9,3690.6,0.8165]
[1753182171472,2.70938513,3690.9,3690.8,0.4452]
[1753182172268,2.70932191,3691.0,3690.8,0.4452]
[1753182172644,2.70932191,3691.0,3690.9,0.4452]
[1753182173251,2.70932191,3691.0,3690.6,1.2617]
[1753182173453,2.70948202,3690.8,3690.7,0.4452]
[1753182173944,2.7095041,3690.8,3690.7,0.4452]
[1753182174445,2.7095041,3690.8,3690.5,0.1362]
[1753182174642,2.84449776,3691.0,3690.6,0.4452]
[1753182174643,0.1352,3691.0,3690.6,0.4452]
[1753182175256,2.84449697,3691.0,3690.7,0.4452]
[1753182175452,0.03386707,3690.9,3690.7,0.4452]
[1753182175652,0.1352,3691.0,3690.8,0.4452]
[1753182175867,0.1352,3691.0,3690.9,0.4452]
[1753182176479,0.1352,3691.2,3690.9,0.4452]
[1753182176642,14.5,3691.3,3691.0,0.7837]
[1753182176960,14.5,3691.3,3691.1,0.4452]
[1753182177170,0.1352,3691.7,3691.2,0.4452]
[1753182177171,2.70887826,3691.6,3691.2,0.4452]
[1753182177363,2.70887826,3691.6,3691.0,0.9189]
[1753182177568,14.5,3691.5,3691.3,0.4452]
[1753182177988,17.20897749,3691.5,3691.3,0.4452]
[1753182178283,2.70920061,3691.2,3690.9,0.4452]
[1753182178576,2.74306493,3691.2,3690.9,0.4452]
[1753182178812,2.70920061,3691.2,3690.7,0.8973]
[1753182178977,2.70920061,3691.2,3690.7,0.1352]
[1753182179277,2.74308548,3691.1,3690.8,0.4452]
[1753182179461,2.74308548,3691.1,3690.7,0.1352]
[1753182179663,0.03386524,3691.1,3690.8,0.4452]
[1753182179866,2.70916151,3691.2,3690.9,0.4452]
[1753182180074,2.70916151,3691.2,3690.7,0.1352]
[1753182180282,2.74308611,3691.1,3690.8,0.4452]
[1753182180465,2.74310529,3691.1,3690.7,0.1352]
[1753182180676,0.03386524,3691.1,3690.9,0.4452]
[1753182180989,2.84429294,3691.3,3691.0,0.4452]
[1753182181190,2.84429294,3691.3,3691.1,0.4452]
[1753182181409,0.8019,3692.7,3691.2,1.2486]
[1753182181550,0.8019,3692.7,3691.2,3.51251878]
[1753182181551,2.70819228,3692.5,3691.2,3.51251878]
[1753182181755,2.70871159,3691.8,3691.3,0.4452]
[1753182182291,0.9316,3691.9,3691.3,0.4452]
[1753182182493,2.84405253,3691.6,3691.3,0.4452]
[1753182182662,2.70920434,3691.2,3691.0,1.2486]
[1753182183069,2.70920434,3691.2,3691.1,0.4452]
[1753182183896,0.1352,3691.3,3691.1,0.4452]
[1753182184196,14.5,3691.7,3691.2,0.4452]
[1753182184197,17.20884515,3691.7,3691.2,0.4452]
[1753182184351,2.70884515,3691.7,3691.3,0.8034]
[1753182184555,2.84392512,3691.8,3691.4,0.4452]
[1753182184757,2.84392512,3691.8,3691.5,0.4452]
[1753182184758,14.5,3691.7,3691.5,0.4452]
[1753182184979,14.5,3691.7,3691.6,0.4452]
[1753182185583,0.1352,3691.8,3691.6,0.4452]
[1753182185768,0.1352,3691.8,3691.7,0.4452]
[1753182186094,17.34390578,3691.8,3691.7,0.4452]
[1753182186397,14.6352,3691.8,3691.7,0.4452]
[1753182186594,2.70856076,3692.0,3691.7,0.4452]
[1753182186795,2.70867629,3691.9,3691.4,0.5804]
[1753182186957,2.70871263,3691.8,3691.7,0.4452]
[1753182187157,2.84371475,3692.1,3691.7,0.4452]
[1753182187158,17.20858489,3692.0,3691.7,0.4452]
[1753182187359,17.20858489,3692.0,3691.8,0.4452]
[1753182187869,2.70863241,3691.9,3691.8,0.4452]
[1753182188674,17.20858448,3692.0,3691.8,0.4452]
[1753182189083,17.20858448,3692.0,3691.4,2.84418514]
[1753182189281,17.20858448,3692.0,3691.9,0.4452]
[1753182190314,2.70866367,3691.9,3691.6,0.4452]
[1753182190596,2.70866367,3691.9,3691.7,0.4452]
[1753182190759,2.70866367,3691.9,3691.8,0.4452]
[1753182191802,2.70858516,3692.0,3691.8,0.4452]
[1753182192805,2.70858516,3692.0,3691.9,0.4452]
[1753182192974,2.84369527,3692.1,3691.9,0.4452]
[1753182193183,2.84369527,3692.1,3691.5,2.70890335]
[1753182193369,2.84369527,3692.1,3692.0,0.4452]
[1753182194199,2.7086788,3691.9,3691.7,0.4452]
[1753182194365,2.7086788,3691.9,3691.8,0.4452]
[1753182195208,2.70863241,3691.9,3691.5,0.4452]
[1753182195388,2.70863241,3691.9,3691.4,0.1352]
[1753182195389,2.70858857,3692.0,3691.6,0.4452]
[1753182195588,2.70858857,3692.0,3691.7,0.4452]
[1753182196116,2.84369952,3692.1,3691.5,2.70890472]
[1753182196418,0.1352,3692.1,3691.8,0.4465]
[1753182196586,2.70857314,3692.0,3691.4,2.84417843]
[1753182196790,2.70857314,3692.0,3691.5,0.4465]
[1753182197100,2.70857314,3692.0,3691.6,0.4465]
[1753182197302,2.70857314,3692.0,3691.4,2.84417843]
[1753182197613,2.84369678,3692.1,3691.7,0.4465]
[1753182197814,2.84369678,3692.1,3691.5,2.70890196]
[1753182197984,2.84369678,3692.1,3691.8,0.4465]
[1753182197985,0.1352,3692.1,3691.8,0.4465]
[1753182198313,2.8436921,3692.1,3691.8,0.4465]
[1753182198852,0.1352,3692.1,3691.6,2.70883615]
[1753182199002,0.1352,3692.1,3691.9,0.4465]
[1753182199672,0.1352,3692.1,3692.0,0.4465]
[1753182200272,2.84368568,3692.1,3692.0,0.4465]
[1753182200474,2.84368568,3692.1,3691.7,0.4465]
[1753182200673,2.84368568,3692.1,3691.8,0.4465]
[1753182202207,0.1352,3692.1,3691.8,0.4465]
[1753182202627,2.84370653,3692.1,3691.8,0.4465]
[1753182202837,0.1352,3692.1,3691.9,0.4465]
[1753182203194,0.1352,3692.1,3692.0,0.4465]
[1753182204599,0.0055,3692.9,3692.0,0.4465]
[1753182204600,0.759,3693.0,3692.0,1.2378]
[1753182204795,2.70799265,3692.8,3692.1,2.70847652]
[1753182205003,2.70799265,3692.8,3692.1,3.15497652]
[1753182205224,2.70799265,3692.8,3692.2,0.4465]
[1753182205534,3.46683824,3693.0,3692.2,3.15490642]
[1753182205832,0.759,3693.0,3692.3,3.15482557]
[1753182205993,0.759,3693.0,3692.4,2.70826408]
[1753182206194,0.7542,3693.2,3692.5,2.70819228]
[1753182206429,0.002,3693.3,3692.5,3.93069228]
[1753182209602,0.002,3693.3,3692.5,3.9577742]
[1753182210127,0.002,3693.3,3692.5,6.9577742]
[1753182210476,0.002,3693.3,3692.5,6.93069228]
[1753182210621,0.002,3693.3,3692.5,8.48147031]
[1753182214528,0.002,3693.3,3692.5,8.61667031]
[1753182216768,0.002,3693.3,3692.5,8.82270734]
[1753182217768,0.002,3693.3,3692.5,8.61667031]
[1753182224266,1e-08,3692.6,3692.5,8.61667031]
[1753182226457,1e-08,3692.6,3692.5,8.82144811]
[1753182228664,1e-08,3692.6,3692.5,16.97228723]
[1753182230271,1e-08,3693.3,3693.2,6.52177897]
[1753182230474,1e-08,3693.3,3693.2,7.57993313]
[1753182230675,0.002,3694.1,3694.0,2.70709258]
[1753182231178,0.002,3694.1,3694.0,3.3267635]
[1753182232988,0.002,3694.1,3694.0,6.3267635]
[1753182233290,0.002,3694.1,3694.0,6.29969258]
[1753182233489,0.002,3694.1,3694.0,7.27950946]
[1753182235889,1e-08,3694.1,3694.0,7.27950946]
[1753182236412,1e-08,3694.1,3694.0,8.08960946]
[1753182236596,1e-08,3694.1,3694.0,8.63960946]
[1753182239496,1e-08,3694.8,3694.7,6.52627969]
[1753182239672,1e-08,3694.8,3694.7,11.93545501]
[1753182239875,1e-08,3694.8,3694.7,12.39285501]
[1753182240515,1e-08,3694.8,3694.7,7.11887969]
[1753182240712,1e-08,3694.8,3694.7,7.66887969]
[1753182240919,1e-08,3694.8,3694.7,9.69983151]
[1753182241485,1e-08,3694.8,3694.7,14.35983151]
[1753182242009,1e-08,3694.8,3694.7,14.5664832]
[1753182244278,3.13005015,3696.5,3695.8,2.70577335]
[1753182244714,3.13005015,3696.5,3696.0,0.1352]
[1753182244915,0.0055,3696.4,3696.0,0.1352]
[1753182245806,0.0055,3696.4,3696.0,2.84081924]
[1753182245980,0.0055,3696.4,3696.0,0.1352]
[1753182246586,2.7053368,3696.4,3696.0,0.1352]
[1753182246905,0.0055,3696.3,3696.0,0.1352]
[1753182247581,0.7869,3696.2,3696.0,0.1352]
[1753182251130,0.7869,3696.2,3694.4,5.27397532]
[1753182251131,0.7852,3695.7,3695.5,0.1352]
[1753182251329,0.7852,3695.7,3694.0,0.97981688]
[1753182251330,0.7852,3695.5,3694.9,2.70637736]
[1753182251541,0.7852,3695.5,3695.0,0.1352]
[1753182251707,0.7852,3695.5,3695.1,2.70628151]
[1753182251907,0.7852,3695.5,3695.2,2.70619893]
[1753182252102,0.7852,3695.5,3695.3,0.1352]
[1753182253408,0.798,3695.8,3695.5,2.70594206]
[1753182253608,0.798,3695.8,3695.4,3.16346231]
[1753182253836,0.798,3695.8,3695.5,2.84117448]
[1753182254216,0.798,3695.8,3695.5,0.1352]
[1753182255320,0.798,3695.8,3695.5,2.84114226]
[1753182255521,0.798,3695.8,3695.5,2.84116926]
[1753182255738,0.798,3695.8,3695.5,0.1352]
[1753182256303,0.798,3695.8,3695.5,2.84117137]
[1753182256543,0.798,3695.8,3695.5,0.1352]
[1753182256755,0.798,3695.8,3695.6,2.7058512]
[1753182257625,0.798,3695.8,3695.7,2.70584733]
[1753182257952,3.55,3696.8,3695.6,2.70589444]
[1753182258242,0.1352,3696.2,3695.6,2.70589444]
[1753182258635,0.1352,3696.2,3695.5,0.1352]
[1753182258976,0.1352,3696.5,3695.9,2.70565146]
[1753182259239,0.68975281,3696.5,3695.8,0.1352]
[1753182259466,2.70533492,3696.4,3695.8,0.1352]
[1753182259604,2.70567556,3696.0,3695.4,3.0]
[1753182259808,2.70570427,3695.9,3695.6,0.1352]
[1753182260360,2.70598498,3695.6,3694.5,0.4562]
[1753182260659,2.70525136,3696.6,3694.7,4.7952]
[1753182260660,2.70622007,3695.2,3694.7,4.7952]
[1753182260822,0.03382858,3695.1,3694.7,3.1352]
[1753182261023,0.4637,3695.1,3694.7,3.1352]
[1753182261225,0.4637,3695.1,3694.7,0.1352]
[1753182261525,0.4637,3695.1,3694.4,0.1352]
[1753182261526,3.17023417,3694.8,3694.4,0.1352]
[1753182261779,2.70662632,3694.7,3694.4,0.1352]
[1753182262069,0.03383224,3694.7,3694.4,0.1352]
[1753182262274,0.4637,3694.8,3694.4,0.1352]
[1753182262624,0.4637,3694.8,3694.4,2.84199525]
[1753182262820,0.4637,3694.8,3694.4,3.42629477]
[1753182264233,0.4637,3694.8,3694.6,2.70662573]
[1753182264434,14.5,3695.1,3694.5,0.4562]
[1753182264435,14.9637,3695.1,3694.5,0.4562]
[1753182264632,0.4637,3695.1,3694.7,0.1352]
[1753182264937,0.4637,3695.1,3694.9,0.1352]
[1753182267120,3.17020584,3694.9,3694.4,0.1352]
[1753182267325,2.74034467,3694.8,3694.4,0.1352]
[1753182267544,0.4637,3694.9,3694.4,0.1352]
[1753182267865,3.17014816,3694.9,3694.4,0.1352]
[1753182268053,0.4637,3694.9,3694.4,2.84199653]
[1753182268366,3.17015177,3694.9,3694.4,0.1352]
[1753182268665,17.67015177,3694.9,3694.4,0.1352]
[1753182269427,14.9637,3694.9,3694.4,0.1352]
[1753182270267,2.70651834,3694.8,3694.4,0.1352]
[1753182270479,17.67015675,3694.9,3694.4,0.1352]
[1753182270856,2.70652019,3694.8,3694.4,0.1352]
[1753182271176,17.6701465,3694.9,3694.4,0.1352]
[1753182272976,2.70652064,3694.8,3694.4,0.1352]
[1753182273173,2.70660005,3694.7,3694.4,0.1352]
[1753182273676,2.70665565,3694.6,3694.4,0.1352]
[1753182274578,17.20660272,3694.7,3694.4,0.1352]
[1753182275081,2.70665781,3694.6,3694.4,0.1352]
[1753182275285,2.70672621,3694.5,3694.4,0.1352]
[1753182275643,2.70667027,3694.6,3694.4,0.1352]
[1753182276577,2.74050343,3694.6,3694.4,0.1352]
[1753182276781,3.17042621,3694.5,3694.4,0.001]
[1753182277345,17.67042621,3694.5,3694.4,0.001]
[1753182280782,3.17042621,3694.5,3694.4,0.001]
[1753182281375,17.67042621,3694.5,3694.4,0.001]
[1753182282292,20.67042621,3694.5,3694.4,0.001]
[1753182284496,6.17042621,3694.5,3694.4,0.001]
[1753182284889,20.67042621,3694.5,3694.4,0.001]
[1753182285612,50.80682972,3694.5,3694.4,0.001]
[1753182288579,20.80682972,3694.5,3694.4,0.001]
[1753182289677,50.80682972,3694.5,3694.4,0.001]
[1753182292806,20.67042621,3694.5,3694.4,0.001]
[1753182293609,2.70653376,3694.8,3694.4,0.4555]
[1753182293921,3.1352,3694.8,3694.4,0.001]
[1753182294083,17.6352,3694.8,3694.4,0.001]
[1753182294286,17.6352,3694.8,3694.5,0.4545]
[1753182294488,17.6352,3694.8,3694.6,0.4545]
[1753182294686,17.6352,3694.8,3694.7,0.4545]
[1753182295482,17.6352,3694.8,3694.4,0.001]
[1753182295687,17.6352,3694.8,3694.5,0.4545]
[1753182295922,17.6352,3694.8,3694.4,2.70779725]
[1753182296122,17.6352,3694.8,3694.6,0.4545]
[1753182296426,14.6352,3694.8,3694.6,0.4545]
[1753182296730,14.6352,3694.8,3694.4,0.001]
[1753182297312,14.6352,3694.8,3694.5,0.4545]
[1753182297517,0.03383224,3694.7,3694.4,0.001]
[1753182297834,2.70671794,3694.6,3694.4,0.001]
[1753182298127,2.74056028,3694.5,3694.4,0.001]
[1753182298697,0.03383407,3694.5,3694.4,0.001]
[1753182298904,2.70667899,3694.6,3694.4,0.001]
[1753182299141,2.70672621,3694.5,3694.4,0.001]
[1753182299494,17.20672621,3694.5,3694.4,0.001]
[1753182299707,17.67042621,3694.5,3694.4,0.001]
[1753182300029,20.67042621,3694.5,3694.4,0.001]
[1753182300616,17.5,3694.5,3694.4,0.001]
[1753182301023,0.4637,3694.8,3694.4,0.4555]
[1753182301211,0.1352,3694.6,3694.5,0.4545]
[1753182301609,0.1352,3694.6,3694.4,0.001]
[1753182301812,0.1352,3694.6,3694.4,0.4555]
[1753182302138,0.4637,3695.4,3694.6,0.8133]
[1753182302307,0.20186351,3696.2,3694.8,2.70650644]
[1753182302308,0.1352,3695.0,3694.8,2.70650644]
[1753182302623,0.1352,3695.2,3694.9,0.4545]
[1753182302821,1.04662145,3695.8,3694.9,0.4545]
[1753182302822,2.70585997,3695.7,3695.1,2.7062867]
[1753182303033,0.1352,3695.5,3695.2,0.4545]
[1753182303201,0.1352,3695.5,3695.3,3.51942684]
[1753182303401,0.1352,3695.5,3695.4,0.4545]
[1753182304295,0.1352,3695.5,3695.0,0.8329]
[1753182304560,0.1352,3695.5,3695.1,0.4545]
[1753182305035,0.1352,3695.5,3695.2,0.4545]
[1753182305396,0.1352,3695.5,3695.0,3.53924574]
[1753182305646,2.73994945,3695.4,3695.0,0.4545]
[1753182305930,2.73994945,3695.4,3694.7,0.4545]
[1753182305931,0.1352,3695.1,3694.7,0.4545]
[1753182306225,0.1352,3695.1,3694.8,0.4545]
[1753182306645,0.1352,3695.1,3694.9,0.4545]
[1753182307503,14.5,3695.0,3694.6,0.8254]
[1753182307730,14.5,3695.0,3694.7,0.4545]
[1753182307940,14.5,3695.0,3694.8,0.4545]
[1753182308303,14.5,3695.0,3694.9,0.4545]
[1753182308640,0.1352,3695.1,3694.9,0.4545]
[1753182309043,2.7059363,3695.6,3695.0,0.4545]
[1753182309250,14.5,3695.3,3695.0,0.4545]
[1753182309451,14.5,3695.3,3695.1,0.4545]
[1753182309757,14.5,3695.3,3695.2,0.4545]
[1753182310945,14.5,3695.3,3694.8,0.4545]
[1753182311144,2.84141346,3695.2,3694.9,0.4545]
[1753182311352,2.84141346,3695.2,3695.0,0.4545]
[1753182312148,2.84142498,3695.2,3694.6,3.66724742]
[1753182312337,2.84142498,3695.2,3695.1,0.4545]
[1753182312648,2.84142498,3695.2,3694.8,0.4545]
[1753182313036,2.84142498,3695.2,3694.9,0.4545]
[1753182313245,2.84142498,3695.2,3694.6,1.59820401]
[1753182313246,2.84142498,3695.2,3695.0,0.4545]
[1753182313427,0.1352,3695.2,3695.0,0.4545]
[1753182313616,0.1352,3695.2,3695.1,0.4545]
[1753182314837,14.5,3695.3,3695.1,0.4545]
[1753182315041,14.5,3695.3,3695.0,2.70631194]
[1753182315225,14.5,3695.3,3695.1,0.4545]
[1753182315430,14.5,3695.3,3695.2,0.4545]
[1753182316044,0.1352,3695.4,3695.2,0.4545]
[1753182316252,2.70583383,3695.8,3695.3,0.4601]
[1753182316448,17.34105662,3695.7,3695.4,0.4601]
[1753182316666,17.34105662,3695.7,3695.5,0.4601]
[1753182317035,2.70592055,3695.6,3695.5,0.4601]
[1753182317358,17.34107474,3695.7,3695.5,0.4601]
[1753182317739,2.70592055,3695.6,3695.0,2.84154064]
[1753182317943,2.70592055,3695.6,3695.2,0.4601]
[1753182318155,17.34107417,3695.7,3695.3,0.4601]
[1753182318355,17.34107417,3695.7,3695.4,0.4601]
[1753182318568,2.70593704,3695.6,3695.4,0.4601]
[1753182318758,2.70593704,3695.6,3695.1,0.4601]
[1753182319073,2.70593704,3695.6,3695.2,0.71015681]
[1753182319243,14.6352,3695.7,3695.3,0.25005681]
[1753182319441,17.34105911,3695.7,3695.4,0.25005681]
[1753182319772,0.033824,3695.6,3695.5,0.25005681]
[1753182319942,17.34105911,3695.7,3695.5,0.25005681]
[1753182320147,17.34105911,3695.7,3695.4,0.4601]
[1753182320148,0.1352,3695.7,3695.6,0.71015681]
[1753182320456,0.4637,3696.5,3695.6,0.71015681]